[Event "Championnat d'Europe Rapide"]
[Date "2024.12.08"]
[White "Ghimpu, Samuel-Timotei"]
[Black "Livaic, Leon"]
[WhiteElo "2475"]
[BlackElo "2560"]
[Round "11.20"]
[Result "1-0"]
[TimeControl "900+10"]

1. d4 {[%emt 00:03:01] [%clk 00:12:20]} d6 {[%emt 00:00:04] [%clk 00:15:17]} 2.
e4 {[%emt 00:00:12] [%clk 00:12:16]} Nf6 {[%emt 00:00:02] [%clk 00:15:25]} 3.
Nc3 {[%emt 00:00:02] [%clk 00:12:24]} e5 {[%emt 00:00:02] [%clk 00:15:33]} 4.
Nf3 {[%emt 00:00:03] [%clk 00:12:30]} Nbd7 {[%emt 00:00:02] [%clk 00:15:41]} 5.
a4 {[%emt 00:00:07] [%clk 00:12:34]} Be7 {[%emt 00:00:02] [%clk 00:15:49]} 6.
Bc4 {[%emt 00:00:21] [%clk 00:12:23]} O-O {[%emt 00:00:04] [%clk 00:15:55]} 7.
O-O {[%emt 00:00:03] [%clk 00:12:30]} c6 {[%emt 00:00:03] [%clk 00:16:02]} 8.
Re1 {[%emt 00:00:22] [%clk 00:12:18]} a5 {[%emt 00:00:02] [%clk 00:16:10]} 9. h3
{[%emt 00:00:06] [%clk 00:12:23]} exd4 {[%emt 00:00:10] [%clk 00:16:09]} 10.
Qxd4 {[%emt 00:00:30] [%clk 00:12:02]} Nb6 {[%emt 00:00:03] [%clk 00:16:17]} 11.
Bg5 {[%emt 00:01:31] [%clk 00:10:41]} h6 {[%emt 00:01:16] [%clk 00:15:11]} 12.
Bh4 {[%emt 00:00:14] [%clk 00:10:37]} Nxc4 {[%emt 00:00:03] [%clk 00:15:17]} 13.
Qxc4 {[%emt 00:00:02] [%clk 00:10:46]} Qb6 {[%emt 00:01:49] [%clk 00:13:38]} 14.
Qd3 {[%emt 00:01:54] [%clk 00:09:01]} Re8 {[%emt 00:00:50] [%clk 00:12:59]} 15.
b3 {[%emt 00:01:15] [%clk 00:07:56]} Be6 {[%emt 00:01:16] [%clk 00:11:53]} 16.
Nd4 {[%emt 00:00:16] [%clk 00:07:50]} Rad8 {[%emt 00:00:17] [%clk 00:11:46]} 17.
Rad1 {[%emt 00:00:02] [%clk 00:07:58]} Qc5 {[%emt 00:00:27] [%clk 00:11:28]} 18.
f4 {[%emt 00:02:44] [%clk 00:05:24]} Qb6 {[%emt 00:01:30] [%clk 00:10:08]} 19.
Bf2 {[%emt 00:01:20] [%clk 00:04:14]} Qc7 {[%emt 00:00:02] [%clk 00:10:16]} 20.
Qf3 {[%emt 00:01:31] [%clk 00:02:53]} Bc8 {[%emt 00:00:15] [%clk 00:10:12]} 21.
Bh4 {[%emt 00:00:28] [%clk 00:02:35]} Nh7 {[%emt 00:00:43] [%clk 00:09:39]} 22.
Bxe7 {[%emt 00:00:12] [%clk 00:02:33]} Rxe7 {[%emt 00:00:01] [%clk 00:09:47]}
23. Nde2 {[%emt 00:00:25] [%clk 00:02:18]} Rde8 {[%emt 00:00:36] [%clk
00:09:21]} 24. Ng3 {[%emt 00:00:03] [%clk 00:02:26]} f5 {[%emt 00:01:53] [%clk
00:07:38]} 25. Qd3 {[%emt 00:00:01] [%clk 00:02:34]} fxe4 {[%emt 00:00:24] [%clk
00:07:23]} 26. Qxd6 {[%emt 00:00:06] [%clk 00:02:39]} Qxd6 {[%emt 00:00:58]
[%clk 00:06:35]} 27. Rxd6 {[%emt 00:00:01] [%clk 00:02:47]} e3 {[%emt 00:00:31]
[%clk 00:06:14]} 28. Nce4 {[%emt 00:00:24] [%clk 00:02:33]} Rf7 {[%emt 00:03:23]
[%clk 00:03:02]} 29. Rd3 {[%emt 00:01:12] [%clk 00:01:30]} Rxf4 {[%emt 00:00:12]
[%clk 00:03:00]} 30. Nd6 {[%emt 00:00:02] [%clk 00:01:38]} Ref8 {[%emt 00:00:54]
[%clk 00:02:16]} 31. Rexe3 {[%emt 00:00:03] [%clk 00:01:45]} Nf6 {[%emt
00:00:32] [%clk 00:01:53]} 32. c4 {[%emt 00:00:39] [%clk 00:01:17]} b6 {[%emt
00:00:43] [%clk 00:01:20]} 33. Re7 {[%emt 00:00:19] [%clk 00:01:07]} Bd7 {[%emt
00:00:20] [%clk 00:01:11]} 34. Ne2 {[%emt 00:00:12] [%clk 00:01:05]} Rh4 {[%emt
00:00:01] [%clk 00:01:19]} 35. Rg3 {[%emt 00:00:11] [%clk 00:01:04]} g5 {[%emt
00:00:20] [%clk 00:01:10]} 36. Rf3 {[%emt 00:00:16] [%clk 00:00:58]} g4 {[%emt
00:00:23] [%clk 00:00:57]} 37. Rf4 {[%emt 00:00:07] [%clk 00:01:01]} Rh5 {[%emt
00:00:26] [%clk 00:00:41]} 38. h4 {[%emt 00:00:53] [%clk 00:00:18]} Rc5 {[%emt
00:00:36] [%clk 00:00:15]} 39. Ng3 {[%emt 00:00:12] [%clk 00:00:16]} Nh5 {[%emt
00:00:11] [%clk 00:00:14]} 40. Nxh5 {[%emt 00:00:04] [%clk 00:00:22]} 1-0

[Site "Europe Echecs"]

[Event "Championnat d'Europe Rapide"]
[Date "2024.12.08"]
[White "Alonso Rosell, Alvar"]
[Black "Todorovic, Goran N"]
[WhiteElo "2532"]
[BlackElo "2256"]
[Round "11.21"]
[Result "1-0"]
[TimeControl "900+10"]

1. d4 {[%emt 00:00:02] [%clk 00:15:18]} d5 {[%emt 00:00:03] [%clk 00:15:18]} 2.
Nf3 {[%emt 00:00:02] [%clk 00:15:26]} Nf6 {[%emt 00:00:17] [%clk 00:15:10]} 3.
e3 {[%emt 00:00:02] [%clk 00:15:34]} c5 {[%emt 00:00:05] [%clk 00:15:16]} 4.
Nbd2 {[%emt 00:01:02] [%clk 00:14:42]} e6 {[%emt 00:00:14] [%clk 00:15:11]} 5.
b3 {[%emt 00:00:06] [%clk 00:14:46]} Nc6 {[%emt 00:01:10] [%clk 00:14:11]} 6.
Bb2 {[%emt 00:00:05] [%clk 00:14:52]} Bd6 {[%emt 00:00:15] [%clk 00:14:06]} 7.
Bd3 {[%emt 00:00:09] [%clk 00:14:53]} Qc7 {[%emt 00:00:21] [%clk 00:13:55]} 8.
c4 {[%emt 00:01:10] [%clk 00:13:52]} cxd4 {[%emt 00:00:19] [%clk 00:13:46]} 9.
exd4 {[%emt 00:00:03] [%clk 00:14:00]} O-O {[%emt 00:01:29] [%clk 00:12:27]} 10.
O-O {[%emt 00:00:06] [%clk 00:14:04]} e5 {[%emt 00:01:59] [%clk 00:10:38]} 11.
cxd5 {[%emt 00:04:20] [%clk 00:09:54]} Nxd4 {[%emt 00:00:03] [%clk 00:10:44]}
12. Rc1 {[%emt 00:01:15] [%clk 00:08:50]} Nxf3+ {[%emt 00:02:14] [%clk
00:08:40]} 13. Qxf3 {[%emt 00:00:03] [%clk 00:08:56]} Qd8 {[%emt 00:00:04] [%clk
00:08:46]} 14. Nc4 {[%emt 00:03:53] [%clk 00:05:14]} e4 {[%emt 00:01:07] [%clk
00:07:49]} 15. Bxe4 {[%emt 00:00:48] [%clk 00:04:36]} Nxe4 {[%emt 00:00:52]
[%clk 00:07:07]} 16. Qxe4 {[%emt 00:00:02] [%clk 00:04:44]} Re8 {[%emt 00:00:02]
[%clk 00:07:14]} 17. Qf3 {[%emt 00:00:44] [%clk 00:04:10]} Bf8 {[%emt 00:00:38]
[%clk 00:06:46]} 18. Rfd1 {[%emt 00:00:23] [%clk 00:03:58]} f6 {[%emt 00:00:43]
[%clk 00:06:13]} 19. d6 {[%emt 00:00:56] [%clk 00:03:12]} Qd7 {[%emt 00:01:38]
[%clk 00:04:44]} 20. Qd5+ {[%emt 00:00:45] [%clk 00:02:38]} Re6 {[%emt 00:00:40]
[%clk 00:04:14]} 21. Ba3 {[%emt 00:00:31] [%clk 00:02:17]} Rb8 {[%emt 00:00:07]
[%clk 00:04:16]} 22. Ne3 {[%emt 00:00:08] [%clk 00:02:19]} Qf7 {[%emt 00:01:47]
[%clk 00:02:39]} 23. Rc7 {[%emt 00:00:20] [%clk 00:02:10]} Bd7 {[%emt 00:00:01]
[%clk 00:02:48]} 24. Rxb7 {[%emt 00:00:13] [%clk 00:02:07]} Rxb7 {[%emt
00:00:26] [%clk 00:02:32]} 25. Qxb7 {[%emt 00:00:01] [%clk 00:02:16]} f5 {[%emt
00:00:02] [%clk 00:02:40]} 26. Nd5 {[%emt 00:00:16] [%clk 00:02:10]} Bxd6 {[%emt
00:00:43] [%clk 00:02:07]} 27. Bxd6 {[%emt 00:00:10] [%clk 00:02:09]} h6 {[%emt
00:00:26] [%clk 00:01:52]} 28. Ne7+ {[%emt 00:00:14] [%clk 00:02:05]} 1-0

[Site "Europe Echecs"]

[Event "Championnat d'Europe Rapide"]
[Date "2024.12.08"]
[White "Magold, Filip"]
[Black "Guliyev, Namig"]
[WhiteElo "2428"]
[BlackElo "2484"]
[Round "11.22"]
[Result "0-1"]
[TimeControl "900+10"]

1. e4 {[%emt 00:01:29] [%clk 00:13:52]} c5 {[%emt 00:00:02] [%clk 00:15:18]} 2.
Nf3 {[%emt 00:00:01] [%clk 00:14:01]} d6 {[%emt 00:00:01] [%clk 00:15:26]} 3. d4
{[%emt 00:00:02] [%clk 00:14:09]} cxd4 {[%emt 00:00:02] [%clk 00:15:34]} 4. Nxd4
{[%emt 00:00:01] [%clk 00:14:18]} Nf6 {[%emt 00:00:02] [%clk 00:15:42]} 5. Nc3
{[%clk 00:14:27]} a6 {[%emt 00:00:02] [%clk 00:15:50]} 6. Be3 {[%emt 00:00:01]
[%clk 00:14:36]} e6 {[%emt 00:00:03] [%clk 00:15:58]} 7. g4 {[%clk 00:14:45]} e5
{[%emt 00:00:05] [%clk 00:16:02]} 8. Nf5 {[%emt 00:00:07] [%clk 00:14:48]} g6
{[%emt 00:00:01] [%clk 00:16:11]} 9. Bg2 {[%emt 00:00:07] [%clk 00:14:52]} gxf5
{[%emt 00:00:13] [%clk 00:16:08]} 10. exf5 {[%clk 00:15:01]} h6 {[%emt 00:00:02]
[%clk 00:16:15]} 11. h3 {[%emt 00:00:45] [%clk 00:14:26]} Nbd7 {[%emt 00:00:25]
[%clk 00:16:00]} 12. Qe2 {[%emt 00:00:18] [%clk 00:14:18]} Rb8 {[%emt 00:00:13]
[%clk 00:15:57]} 13. O-O-O {[%emt 00:00:25] [%clk 00:14:03]} b5 {[%emt 00:00:08]
[%clk 00:16:00]} 14. f4 {[%clk 00:14:11]} b4 {[%emt 00:01:23] [%clk 00:14:47]}
15. fxe5 {[%emt 00:00:58] [%clk 00:13:24]} dxe5 {[%emt 00:01:45] [%clk
00:13:12]} 16. Ne4 {[%emt 00:01:00] [%clk 00:12:33]} Nxe4 {[%emt 00:00:34] [%clk
00:12:48]} 17. Bxe4 {[%emt 00:00:02] [%clk 00:12:41]} Qc7 {[%emt 00:00:21] [%clk
00:12:37]} 18. Rd2 {[%emt 00:00:52] [%clk 00:11:59]} Be7 {[%emt 00:01:48] [%clk
00:10:59]} 19. Rhd1 {[%emt 00:02:30] [%clk 00:09:39]} Nf6 {[%emt 00:00:01] [%clk
00:11:07]} 20. Bg2 {[%emt 00:00:29] [%clk 00:09:20]} Bb7 {[%emt 00:00:04] [%clk
00:11:14]} 21. Bxb7 {[%emt 00:01:37] [%clk 00:07:53]} Qxb7 {[%emt 00:00:14]
[%clk 00:11:10]} 22. h4 {[%emt 00:00:02] [%clk 00:08:01]} Qe4 {[%emt 00:01:43]
[%clk 00:09:37]} 23. g5 {[%emt 00:00:02] [%clk 00:08:10]} hxg5 {[%emt 00:00:13]
[%clk 00:09:33]} 24. hxg5 {[%emt 00:00:15] [%clk 00:08:05]} Ng4 {[%emt 00:00:13]
[%clk 00:09:31]} 25. f6 {[%emt 00:00:01] [%clk 00:08:14]} Nxe3 {[%emt 00:01:34]
[%clk 00:08:07]} 26. fxe7 {[%emt 00:00:02] [%clk 00:08:22]} Rh1 {[%emt 00:00:31]
[%clk 00:07:46]} 27. b3 {[%emt 00:01:44] [%clk 00:06:48]} Rxd1+ {[%emt 00:00:25]
[%clk 00:07:30]} 28. Rxd1 {[%emt 00:00:02] [%clk 00:06:56]} Rc8 {[%emt 00:00:04]
[%clk 00:07:36]} 29. Rd2 {[%emt 00:00:04] [%clk 00:07:02]} Rxc2+ {[%emt
00:01:49] [%clk 00:05:58]} 0-1

[Site "Europe Echecs"]

[Event "Championnat d'Europe Rapide"]
[Date "2024.12.08"]
[White "Nikolovski, Nikola"]
[Black "Baidetskyi, Valentin"]
[WhiteElo "2407"]
[BlackElo "2519"]
[Round "11.23"]
[Result "0-1"]
[TimeControl "900+10"]

1. f4 {[%clk 00:15:17]} d5 {[%emt 00:00:33] [%clk 00:14:48]} 2. Nf3 {[%emt
00:00:02] [%clk 00:15:25]} Nf6 {[%emt 00:00:03] [%clk 00:14:56]} 3. e3 {[%emt
00:00:03] [%clk 00:15:32]} g6 {[%emt 00:00:09] [%clk 00:14:57]} 4. Be2 {[%emt
00:00:02] [%clk 00:15:40]} Bg7 {[%emt 00:00:01] [%clk 00:15:05]} 5. O-O {[%emt
00:00:03] [%clk 00:15:47]} O-O {[%emt 00:00:03] [%clk 00:15:13]} 6. d3 {[%emt
00:00:02] [%clk 00:15:55]} c5 {[%emt 00:00:03] [%clk 00:15:20]} 7. Ne5 {[%emt
00:02:06] [%clk 00:13:58]} Nfd7 {[%emt 00:00:17] [%clk 00:15:13]} 8. Nxd7 {[%emt
00:00:07] [%clk 00:14:01]} Bxd7 {[%emt 00:00:05] [%clk 00:15:19]} 9. Bf3 {[%emt
00:00:36] [%clk 00:13:34]} Bc6 {[%emt 00:00:55] [%clk 00:14:34]} 10. Qe1 {[%emt
00:00:02] [%clk 00:13:42]} f5 {[%emt 00:00:40] [%clk 00:14:05]} 11. Nc3 {[%emt
00:01:27] [%clk 00:12:24]} d4 {[%emt 00:02:36] [%clk 00:11:40]} 12. Nd1 {[%emt
00:04:13] [%clk 00:08:20]} Bxf3 {[%emt 00:00:26] [%clk 00:11:24]} 13. Rxf3
{[%emt 00:00:02] [%clk 00:08:28]} Nc6 {[%emt 00:00:04] [%clk 00:11:31]} 14. e4
{[%emt 00:00:11] [%clk 00:08:27]} Qd7 {[%emt 00:01:59] [%clk 00:09:42]} 15. Nf2
{[%emt 00:02:02] [%clk 00:06:35]} e5 {[%emt 00:00:42] [%clk 00:09:10]} 16. exf5
{[%emt 00:00:42] [%clk 00:06:03]} gxf5 {[%emt 00:00:18] [%clk 00:09:02]} 17.
fxe5 {[%emt 00:01:08] [%clk 00:05:05]} Nxe5 {[%emt 00:00:01] [%clk 00:09:10]}
18. Rg3 {[%emt 00:00:38] [%clk 00:04:37]} Rae8 {[%emt 00:01:47] [%clk 00:07:33]}
19. Qf1 {[%emt 00:00:02] [%clk 00:04:45]} Ng4 {[%emt 00:02:24] [%clk 00:05:19]}
20. Bf4 {[%emt 00:01:17] [%clk 00:03:38]} Qe6 {[%emt 00:02:05] [%clk 00:03:24]}
21. Nh3 {[%emt 00:01:27] [%clk 00:02:21]} h6 {[%emt 00:02:20]} 22. Rd1 {[%clk
00:00:49]} Qe2 {[%emt 00:01:14] [%clk 00:01:52]} 23. Bd2 {[%emt 00:00:27] [%clk
00:00:32]} Qxf1+ {[%emt 00:00:18] [%clk 00:01:44]} 24. Rxf1 {[%emt 00:00:03]
[%clk 00:00:39]} Re2 {[%emt 00:00:01] [%clk 00:01:53]} 25. Rd1 {[%emt 00:00:06]
[%clk 00:00:44]} Be5 {[%emt 00:00:43] [%clk 00:01:20]} 26. Bf4 {[%emt 00:00:30]
[%clk 00:00:24]} Re8 {[%emt 00:00:35] [%clk 00:00:55]} 27. Bxe5 {[%emt 00:00:14]
[%clk 00:00:20]} R8xe5 {[%emt 00:00:05] [%clk 00:01:00]} 28. Nf4 {[%emt
00:00:03] [%clk 00:00:27]} Re1+ {[%emt 00:00:04] [%clk 00:01:06]} 0-1

[Site "Europe Echecs"]

[Event "Championnat d'Europe Rapide"]
[Date "2024.12.08"]
[White "Jacimovic, Dragoljub"]
[Black "Mamedov, Rauf"]
[WhiteElo "2358"]
[BlackElo "2656"]
[Round "11.24"]
[Result "0-1"]
[TimeControl "900+10"]

1. d4 {[%clk 00:15:16]} d5 {[%emt 00:00:02] [%clk 00:15:19]} 2. c4 {[%emt
00:00:07] [%clk 00:15:19]} e6 {[%emt 00:00:02] [%clk 00:15:27]} 3. Nc3 {[%emt
00:00:04] [%clk 00:15:24]} c5 {[%emt 00:00:02] [%clk 00:15:36]} 4. cxd5 {[%emt
00:00:18] [%clk 00:15:16]} cxd4 {[%emt 00:00:01] [%clk 00:15:44]} 5. Qxd4 {[%emt
00:00:15] [%clk 00:15:11]} Nc6 {[%emt 00:00:03] [%clk 00:15:52]} 6. Qd1 {[%emt
00:00:05] [%clk 00:15:16]} exd5 {[%emt 00:00:02] [%clk 00:16:00]} 7. Qxd5 {[%emt
00:00:04] [%clk 00:15:21]} Qc7 {[%emt 00:00:04] [%clk 00:16:07]} 8. Bg5 {[%emt
00:01:02] [%clk 00:14:28]} Be6 {[%emt 00:00:03] [%clk 00:16:14]} 9. Qe4 {[%emt
00:00:14] [%clk 00:14:21]} Qb6 {[%emt 00:00:15] [%clk 00:16:13]} 10. O-O-O
{[%emt 00:01:34] [%clk 00:12:57]} Be7 {[%emt 00:00:20] [%clk 00:16:03]} 11. Nf3
{[%emt 00:01:35] [%clk 00:11:32]} Nf6 {[%emt 00:00:05] [%clk 00:16:08]} 12. Qa4
{[%emt 00:00:17] [%clk 00:11:25]} O-O {[%emt 00:00:08] [%clk 00:16:10]} 13. e3
{[%emt 00:03:44] [%clk 00:07:50]} a6 {[%emt 00:00:15] [%clk 00:16:06]} 14. Bc4
{[%emt 00:01:04] [%clk 00:06:55]} Bxc4 {[%emt 00:00:02] [%clk 00:16:14]} 15.
Qxc4 {[%emt 00:00:03] [%clk 00:07:02]} Rac8 {[%clk 00:16:23]} 16. Qb3 {[%emt
00:00:11] [%clk 00:07:03]} Qc5 {[%emt 00:00:17] [%clk 00:16:16]} 17. Kb1 {[%emt
00:01:43] [%clk 00:05:30]} Na5 {[%emt 00:00:02] [%clk 00:16:24]} 18. Qc2 {[%emt
00:00:13] [%clk 00:05:27]} Nc4 {[%emt 00:00:02] [%clk 00:16:33]} 19. Rc1 {[%emt
00:01:33] [%clk 00:04:03]} Rc6 {[%emt 00:00:29] [%clk 00:16:13]} 20. Bxf6 {[%emt
00:01:38] [%clk 00:02:35]} Bxf6 {[%emt 00:00:02] [%clk 00:16:22]} 21. Nd2 {[%emt
00:00:09] [%clk 00:02:35]} Na3+ {[%emt 00:00:20] [%clk 00:16:12]} 22. bxa3
{[%emt 00:00:09] [%clk 00:02:37]} Bxc3 {[%emt 00:00:01] [%clk 00:16:21]} 23. Nb3
{[%emt 00:00:53] [%clk 00:01:54]} Qxa3 {[%emt 00:00:02] [%clk 00:16:29]} 24.
Rcd1 {[%emt 00:00:27] [%clk 00:01:37]} Bf6 {[%emt 00:00:04] [%clk 00:16:35]} 25.
Qe2 {[%emt 00:00:09] [%clk 00:01:37]} Rb6 {[%emt 00:00:06] [%clk 00:16:40]} 0-1

[Site "Europe Echecs"]

[Event "Championnat d'Europe Rapide"]
[Date "2024.12.08"]
[White "Deac, Bogdan-Daniel"]
[Black "Costachi, Mihnea"]
[WhiteElo "2696"]
[BlackElo "2464"]
[Round "11.25"]
[Result "1/2-1/2"]
[TimeControl "900+10"]

1. Nf3 {[%emt 00:00:01] [%clk 00:15:18]} Nf6 {[%emt 00:00:06] [%clk 00:15:14]}
2. d4 {[%emt 00:00:02] [%clk 00:15:26]} d5 {[%emt 00:00:37] [%clk 00:14:48]} 3.
Bf4 {[%emt 00:00:01] [%clk 00:15:34]} c5 {[%emt 00:00:34] [%clk 00:14:25]} 4. e3
{[%clk 00:15:42]} e6 {[%emt 00:00:04] [%clk 00:14:31]} 5. Be2 {[%emt 00:00:07]
[%clk 00:15:45]} Nc6 {[%emt 00:00:27] [%clk 00:14:14]} 6. O-O {[%emt 00:00:05]
[%clk 00:15:50]} Be7 {[%emt 00:00:17] [%clk 00:14:08]} 7. dxc5 {[%emt 00:00:06]
[%clk 00:15:54]} Bxc5 {[%emt 00:00:18] [%clk 00:14:00]} 8. c4 {[%emt 00:00:01]
[%clk 00:16:02]} O-O {[%emt 00:00:07] [%clk 00:14:03]} 9. Nc3 {[%emt 00:00:02]
[%clk 00:16:11]} dxc4 {[%emt 00:00:40] [%clk 00:13:32]} 10. Bxc4 {[%emt
00:00:22] [%clk 00:15:59]} a6 {[%emt 00:00:37] [%clk 00:13:06]} 11. Rc1 {[%emt
00:00:13] [%clk 00:15:56]} Qe7 {[%emt 00:00:28] [%clk 00:12:47]} 12. Bg5 {[%emt
00:00:16] [%clk 00:15:50]} Rd8 {[%emt 00:00:29] [%clk 00:12:29]} 13. Qe2 {[%emt
00:06:31] [%clk 00:09:28]} h6 {[%emt 00:01:46] [%clk 00:10:53]} 14. Bh4 {[%emt
00:00:08] [%clk 00:09:30]} Qe8 {[%emt 00:02:12] [%clk 00:08:52]} 15. Bxf6 {[%emt
00:01:58] [%clk 00:07:41]} gxf6 {[%emt 00:00:02] [%clk 00:09:00]} 16. Ne4 {[%emt
00:00:02] [%clk 00:07:49]} Be7 {[%emt 00:00:07] [%clk 00:09:03]} 17. Ng3 {[%emt
00:02:20] [%clk 00:05:39]} b5 {[%emt 00:01:17] [%clk 00:07:56]} 18. Bb3 {[%emt
00:00:21] [%clk 00:05:28]} Na5 {[%emt 00:03:44] [%clk 00:04:22]} 19. Bc2 {[%emt
00:01:55] [%clk 00:03:43]} Qf8 {[%emt 00:00:56] [%clk 00:03:36]} 20. Nd4 {[%emt
00:01:40] [%clk 00:02:14]} Bb7 {[%emt 00:00:29] [%clk 00:03:17]} 21. Be4 {[%emt
00:00:20] [%clk 00:02:03]} Bxe4 {[%emt 00:00:21] [%clk 00:03:07]} 22. Nxe4
{[%emt 00:00:04] [%clk 00:02:08]} f5 {[%emt 00:00:23] [%clk 00:02:55]} 23. Ng3
{[%emt 00:00:02] [%clk 00:02:15]} Bf6 {[%emt 00:00:07] [%clk 00:02:58]} 24. Nh5
{[%emt 00:00:20] [%clk 00:02:05]} Qe7 {[%emt 00:01:29] [%clk 00:01:39]} 25. Qf3
{[%emt 00:01:30] [%clk 00:00:45]} Bxd4 {[%emt 00:00:17] [%clk 00:01:32]} 26.
exd4 {[%emt 00:00:08] [%clk 00:00:47]} Nc4 {[%emt 00:00:05] [%clk 00:01:37]} 27.
Rc2 {[%emt 00:00:35] [%clk 00:00:22]} Qg5 {[%emt 00:00:13] [%clk 00:01:34]} 28.
Rd1 {[%emt 00:00:17] [%clk 00:00:15]} Rac8 {[%emt 00:00:29] [%clk 00:01:16]} 29.
Qe2 {[%emt 00:00:01] [%clk 00:00:24]} Nb6 {[%emt 00:00:48] [%clk 00:00:37]} 30.
Rxc8 {[%emt 00:00:06] [%clk 00:00:28]} Rxc8 {[%clk 00:00:47]} 31. f4 {[%emt
00:00:05] [%clk 00:00:32]} Qh4 {[%emt 00:00:40] [%clk 00:00:17]} 32. g3 {[%emt
00:00:26] [%clk 00:00:17]} Qh3 {[%emt 00:00:10] [%clk 00:00:17]} 33. Nf6+ {[%emt
00:00:10] [%clk 00:00:17]} Kg7 {[%emt 00:00:13] [%clk 00:00:14]} 34. Qe5 {[%clk
00:00:25]} Rc2 {[%emt 00:00:07] [%clk 00:00:17]} 35. Ng4+ {[%emt 00:00:22] [%clk
00:00:14]} Kg8 {[%emt 00:00:16] [%clk 00:00:11]} 36. Nf2 {[%emt 00:00:11] [%clk
00:00:12]} Rxf2 {[%emt 00:00:07] [%clk 00:00:14]} 37. Kxf2 {[%emt 00:00:01]
[%clk 00:00:21]} Qxh2+ {[%emt 00:00:01] [%clk 00:00:23]} 38. Ke1 {[%emt
00:00:18] [%clk 00:00:13]} Qxg3+ {[%emt 00:00:12] [%clk 00:00:21]} 39. Ke2
{[%emt 00:00:11] [%clk 00:00:12]} Nc4 {[%emt 00:00:07] [%clk 00:00:25]} 40. Qb8+
{[%emt 00:00:09] [%clk 00:00:12]} Kg7 {[%emt 00:00:03] [%clk 00:00:32]} 41. d5
{[%emt 00:00:08] [%clk 00:00:15]} Qg2+ {[%emt 00:00:23] [%clk 00:00:18]} 42. Ke1
{[%emt 00:00:02] [%clk 00:00:23]} Qg1+ {[%emt 00:00:06] [%clk 00:00:23]} 43. Ke2
{[%clk 00:00:31]} Qg2+ {[%emt 00:00:10] [%clk 00:00:23]} 44. Ke1 {[%clk
00:00:40]} Qg3+ {[%emt 00:00:16] [%clk 00:00:17]} 45. Ke2 {[%emt 00:00:10]} Qe3+
{[%clk 00:00:19]} 46. Kf1 {[%clk 00:00:57]} Qf3+ {[%emt 00:00:04] [%clk
00:00:25]} 47. Ke1 {[%emt 00:00:02] [%clk 00:01:05]} Qe3+ {[%emt 00:00:20] [%clk
00:00:15]} 48. Kf1 {[%clk 00:01:14]} Qf3+ {[%emt 00:00:05] [%clk 00:00:20]} 49.
Ke1 {[%clk 00:01:24]} exd5 {[%emt 00:00:16] [%clk 00:00:14]} 50. Qa7 {[%emt
00:00:02] [%clk 00:01:31]} Qe4+ {[%emt 00:00:08] [%clk 00:00:16]} 51. Kf2 {[%emt
00:00:03] [%clk 00:01:38]} Qc2+ {[%emt 00:00:04] [%clk 00:00:23]} 52. Ke1 {[%emt
00:00:01] [%clk 00:01:46]} Qe4+ {[%emt 00:00:02] [%clk 00:00:31]} 53. Kf2 {[%clk
00:01:55]} Qxf4+ {[%emt 00:00:03] [%clk 00:00:40]} 54. Ke2 {[%emt 00:00:19]
[%clk 00:01:44]} Qe4+ {[%emt 00:00:19] [%clk 00:00:32]} 55. Kf2 {[%emt 00:00:01]
[%clk 00:01:53]} Qc2+ {[%emt 00:00:09] [%clk 00:00:34]} 56. Ke1 {[%clk
00:02:02]} Qe4+ {[%emt 00:00:09] [%clk 00:00:34]} 57. Kf2 {[%emt 00:00:01] [%clk
00:02:10]} Qh4+ {[%emt 00:00:16] [%clk 00:00:29]} 58. Ke2 {[%emt 00:00:10] [%clk
00:02:09]} Qg4+ {[%emt 00:00:13] [%clk 00:00:28]} 59. Ke1 {[%emt 00:00:01] [%clk
00:02:16]} Qe4+ {[%emt 00:00:15] [%clk 00:00:24]} 60. Kf2 {[%emt 00:00:04] [%clk
00:02:22]} Qf4+ {[%emt 00:00:15] [%clk 00:00:20]} 61. Ke2 {[%emt 00:00:03] [%clk
00:02:27]} Qe4+ {[%emt 00:00:15] [%clk 00:00:17]} 62. Kf2 {[%emt 00:00:04] [%clk
00:02:32]} 1/2-1/2

[Site "Europe Echecs"]